fUSD/lending_fUSD_20250524
["ID","MTS","AMOUNT","RATE_DAILY","PERIOD"]
[362240585,1748116252673,-420.0,0.00019369,2]
[362240586,1748116252682,-545.76,0.00019369,2]
[362240587,1748116252691,-420.0,0.00019369,2]
[362240588,1748116252700,-504.15,0.00019369,2]
[362240589,1748116252710,-190.580656,0.00019369,2]
[362240590,1748116252719,-534.06,0.00019369,2]
[362240591,1748116252728,-766.65,0.00019369,2]
[362240592,1748116252737,-420.0,0.00019369,2]
[362240593,1748116252746,-420.0,0.00019369,2]
[362240594,1748116252755,-420.0,0.00019369,2]
[362240595,1748116252765,-420.0,0.00019369,2]
[362240596,1748116252774,-420.0,0.00019369,2]
[362240597,1748116252783,-420.0,0.00019369,2]
[362240598,1748116252793,-1478.62,0.00019369,2]
[362240599,1748116252801,-152.925138,0.00019369,2]
[362240600,1748116252811,-420.0,0.00019369,2]
[362240601,1748116252820,-420.0,0.00019369,2]
[362240602,1748116252829,-420.0,0.00019369,2]
[362240603,1748116252838,-320.86496459,0.00019369,2]
[362240604,1748116252847,-1538.04,0.00019369,2]
[362240605,1748116252857,-420.0,0.00019369,2]
[362240606,1748116252866,-500.0,0.00019373,2]
[362240607,1748116252875,-500.0,0.00019373,2]
[362240608,1748116252885,-500.0,0.00019373,2]
[362240609,1748116252894,-500.0,0.00019373,2]
[362240610,1748116252903,-500.0,0.00019373,2]
[362240611,1748116252913,-500.74291645,0.00019373,2]
[362240612,1748116252922,-153.04768091,0.00019373,2]
[362240613,1748116252931,-502.92060005,0.00019373,2]
[362240614,1748116252941,-502.28145813,0.00019373,2]
[362240615,1748116252951,-151.0,0.00019373,2]
[362240616,1748116252960,-436.042959,0.00019373,2]
[362240617,1748116252969,-436.042959,0.00019373,2]
[362240618,1748116252978,-3428.15493359,0.00019376,2]
[362240619,1748116252987,-2864.50151044,0.00019394,2]
[362240620,1748116252997,-151.0,0.00019397,2]
[362240621,1748116253006,-353.33167967,0.00019397,2]
[362240622,1748116253015,-420.0,0.00019397,2]
[362240623,1748116253024,-420.0,0.00019397,2]
[362240624,1748116253033,-420.0,0.00019397,2]
[362240625,1748116253042,-330.32,0.00019397,2]
[362240626,1748116253051,-151.0,0.00019397,2]
[362240627,1748116253060,-420.0,0.00019397,2]
[362240628,1748116253070,-420.0,0.00019397,2]
[362240629,1748116253078,-1297.43,0.00019397,2]
[362240630,1748116253088,-420.0,0.00019397,2]
[362240631,1748116253097,-1802.19,0.00019397,2]
[362240632,1748116253106,-927.35,0.00019397,2]
[362240633,1748116253115,-1188.36,0.00019397,2]
[362240634,1748116253125,-1105.39,0.00019397,2]
[362240635,1748116253134,-420.0,0.00019397,2]
[362240636,1748116253144,-391.28350325,0.00019397,2]
[362240637,1748116253156,-420.0,0.00019397,2]
[362240638,1748116253166,-151.0,0.00019397,2]
[362240639,1748116253175,-334.49022393,0.00019397,2]
[362240640,1748116253185,-1608.87,0.00019397,2]
[362240641,1748116253195,-285.13103693,0.00019397,2]
[362240642,1748116253205,-151.0,0.00019397,2]
[362240643,1748116253214,-486.35,0.00019397,2]
[362240644,1748116253225,-420.0,0.00019397,2]
[362240645,1748116253235,-152.971412,0.00019397,2]
[362240646,1748116253245,-469.4,0.00019397,2]
[362240647,1748116253254,-366.24899522,0.00019397,2]
[362240648,1748116253263,-420.0,0.00019397,2]
[362240649,1748116253273,-186.41788917,0.00019397,2]
[362240650,1748116253283,-420.0,0.00019397,2]
[362240651,1748116253291,-420.0,0.00019397,2]
[362240652,1748116253300,-420.0,0.00019397,2]
[362240653,1748116253310,-420.0,0.00019397,2]
[362240654,1748116253320,-151.0,0.00019397,2]
[362240655,1748116253329,-151.0,0.00019397,2]
[362240656,1748116253339,-500.06031334,0.00019397,2]
[362240657,1748116253348,-420.0,0.00019397,2]
[362240658,1748116253358,-436.042959,0.00019397,2]
[362240659,1748116253367,-436.042959,0.00019397,2]
[362240660,1748116253376,-420.0,0.00019397,2]
[362240661,1748116253386,-420.0,0.00019397,2]
[362240662,1748116253395,-420.0,0.00019397,2]
[362240663,1748116253405,-151.0,0.00019397,2]
[362240664,1748116253413,-420.0,0.00019397,2]
[362240665,1748116253423,-420.0,0.00019397,2]
[362240666,1748116253431,-4383.53,0.00019397,2]
[362240667,1748116253441,-3769.69,0.00019397,2]
[362240668,1748116253451,-420.0,0.00019397,2]
[362240669,1748116253461,-656.85,0.00019397,2]
[362240670,1748116253470,-5179.25,0.00019397,2]
[362240671,1748116253480,-12680.55,0.00019397,2]
[362240672,1748116253489,-420.0,0.00019397,2]
[362240673,1748116253498,-2547.29,0.00019397,2]
[362240674,1748116253507,-1162.86,0.00019397,2]
[362240675,1748116253516,-420.0,0.00019397,2]
[362240676,1748116253526,-1344.45,0.00019397,2]
[362240677,1748116253535,-656.04,0.00019397,2]
[362240678,1748116253545,-1282.98,0.00019397,2]
[362240679,1748116253554,-420.0,0.00019397,2]
[362240680,1748116253563,-2271.15,0.00019397,2]
[362240681,1748116253573,-420.0,0.00019397,2]
[362240682,1748116253582,-696.43,0.00019397,2]
[362240683,1748116253593,-420.0,0.00019397,2]
[362240684,1748116253603,-343.82308529,0.00019397,2]
[362240685,1748116253612,-2286.12,0.00019397,2]
[362240686,1748116253621,-420.0,0.00019397,2]
[362240687,1748116253631,-174491.89,0.00019397,2]
[362240688,1748116253641,-455.89224094,0.00019397,2]
[362240689,1748116253650,-518.3,0.00019397,2]
[362240690,1748116253659,-420.0,0.00019397,2]
[362240691,1748116253668,-7135.55,0.00019397,2]
[362240692,1748116253678,-596.93,0.00019397,2]
[362240693,1748116253688,-420.0,0.00019397,2]
[362240694,1748116253697,-2374.36,0.00019397,2]
[362240695,1748116253707,-516.16,0.00019397,2]
[362240696,1748116253716,-529.42,0.00019397,2]
[362240697,1748116253726,-420.0,0.00019397,2]
[362240698,1748116253735,-420.0,0.00019397,2]
[362240699,1748116253745,-8126.19,0.00019397,2]
[362240700,1748116253756,-481.48,0.00019397,2]
[362240701,1748116253766,-151.0,0.00019397,2]
[362240702,1748116253776,-420.0,0.00019397,2]
[362240703,1748116253785,-4788.51,0.00019397,2]
[362240704,1748116253795,-151.0,0.00019397,2]
[362240705,1748116253804,-5164.09,0.00019397,2]
[362240706,1748116253814,-151.0,0.00019397,2]
[362240707,1748116253823,-2539.15,0.00019397,2]
[362240708,1748116253833,-151.0,0.00019397,2]
[362240709,1748116253842,-2472.14,0.00019397,2]
[362240710,1748116253851,-420.0,0.00019397,2]
[362240711,1748116253860,-151.0,0.00019397,2]
[362240712,1748116253870,-420.0,0.00019397,2]
[362240713,1748116253879,-456.31,0.00019397,2]
[362240714,1748116253888,-9389.26,0.00019397,2]
[362240715,1748116253897,-876.17,0.00019397,2]
[362240716,1748116253907,-645.7,0.00019397,2]
[362240717,1748116253917,-420.0,0.00019397,2]
[362240718,1748116253926,-420.0,0.00019397,2]
[362240719,1748116253935,-545.76,0.00019397,2]
[362240720,1748116253945,-420.0,0.00019397,2]
[362240721,1748116253955,-504.15,0.00019397,2]
[362240722,1748116253964,-190.580656,0.00019397,2]
[362240723,1748116253974,-534.06,0.00019397,2]
[362240724,1748116253983,-766.65,0.00019397,2]
[362240725,1748116253993,-420.0,0.00019397,2]
[362240726,1748116254002,-420.0,0.00019397,2]
[362240727,1748116254012,-420.0,0.00019397,2]
[362240728,1748116254021,-420.0,0.00019397,2]
[362240729,1748116254030,-420.0,0.00019397,2]
[362240730,1748116254039,-151.0,0.00019397,2]
[362240731,1748116254049,-420.0,0.00019397,2]
[362240732,1748116254058,-1478.62,0.00019397,2]
[362240733,1748116254067,-151.0,0.00019397,2]
[362240734,1748116254077,-420.0,0.00019397,2]
[362240735,1748116254086,-420.0,0.00019397,2]
[362240736,1748116254095,-151.0,0.00019397,2]
[362240737,1748116254105,-151.0,0.00019397,2]
[362240738,1748116254114,-151.0,0.00019397,2]
[362240739,1748116254123,-151.0,0.00019397,2]
[362240740,1748116254133,-151.0,0.00019397,2]
[362240741,1748116254143,-301.52398056,0.00019397,2]
[362240742,1748116254154,-1538.04,0.00019397,2]
[362240743,1748116254165,-500.0,0.00019397,2]
[362240744,1748116254175,-458.56,0.000194,2]
[362240745,1748116254184,-458.56,0.000194,2]
[362240746,1748116254193,-917.12,0.000194,2]
[362240747,1748116254203,-3428.15493359,0.00019418,2]
[362240748,1748116254212,-420.0,0.00019424,2]
[362240749,1748116254221,-420.0,0.00019424,2]
[362240750,1748116254231,-420.0,0.00019424,2]
[362240751,1748116254241,-420.0,0.00019424,2]
[362240752,1748116254250,-420.0,0.00019424,2]
[362240753,1748116254260,-1297.43,0.00019424,2]
[362240754,1748116254270,-420.0,0.00019424,2]
[362240755,1748116254279,-1802.19,0.00019424,2]
[362240756,1748116254289,-927.35,0.00019424,2]
[362240757,1748116254298,-1188.36,0.00019424,2]
[362240758,1748116254307,-1105.39,0.00019424,2]
[362240759,1748116254317,-276.78378169,0.00019424,2]
[362240760,1748116254327,-420.0,0.00019424,2]
[362240761,1748116254337,-151.0,0.00019424,2]
[362240762,1748116254347,-1608.87,0.00019424,2]
[362240763,1748116254356,-151.0,0.00019424,2]
[362240764,1748116254366,-486.35,0.00019424,2]
[362240765,1748116254375,-420.0,0.00019424,2]
[362240766,1748116254385,-469.4,0.00019424,2]
[362240767,1748116254396,-420.0,0.00019424,2]
[362240768,1748116254405,-420.0,0.00019424,2]
[362240769,1748116254414,-420.0,0.00019424,2]
[362240770,1748116254424,-231.69585072,0.00019424,2]
[362240771,1748116254434,-420.0,0.00019424,2]
[362240772,1748116254445,-151.0,0.00019424,2]
[362240773,1748116254455,-151.0,0.00019424,2]
[362240774,1748116254465,-420.0,0.00019424,2]
[362240775,1748116254473,-420.0,0.00019424,2]
[362240776,1748116254483,-420.0,0.00019424,2]
[362240777,1748116254493,-420.0,0.00019424,2]
[362240778,1748116254502,-420.0,0.00019424,2]
[362240779,1748116254511,-151.0,0.00019424,2]
[362240780,1748116254520,-420.0,0.00019424,2]
[362240781,1748116254530,-4383.53,0.00019424,2]
[362240782,1748116254539,-3769.69,0.00019424,2]
[362240783,1748116254549,-420.0,0.00019424,2]
[362240784,1748116254559,-155.984614,0.00019424,2]
[362240785,1748116254569,-656.85,0.00019424,2]
[362240786,1748116254579,-5179.25,0.00019424,2]
[362240787,1748116254588,-151.0,0.00019424,2]
[362240788,1748116254598,-12680.55,0.00019424,2]
[362240789,1748116254607,-189.60356482,0.00019424,2]
[362240790,1748116254617,-2547.29,0.00019424,2]
[362240791,1748116254627,-1162.86,0.00019424,2]
[362240792,1748116254638,-420.0,0.00019424,2]
[362240793,1748116254649,-1344.45,0.00019424,2]
[362240794,1748116254659,-656.04,0.00019424,2]
[362240795,1748116254670,-151.0,0.00019424,2]
[362240796,1748116254681,-1282.98,0.00019424,2]
[362240797,1748116254692,-294.33088648,0.00019424,2]
[362240798,1748116254701,-2271.15,0.00019424,2]
[362240799,1748116254712,-420.0,0.00019424,2]
[362240800,1748116254722,-696.43,0.00019424,2]
[362240801,1748116254732,-420.0,0.00019424,2]
[362240802,1748116254744,-2286.12,0.00019424,2]
[362240803,1748116254755,-420.0,0.00019424,2]
[362240804,1748116254767,-174491.89,0.00019424,2]
[362240805,1748116254776,-518.3,0.00019424,2]
[362240806,1748116254786,-486.43900973,0.00019424,2]
[362240807,1748116254796,-7135.55,0.00019424,2]
[362240808,1748116254806,-596.93,0.00019424,2]
[362240809,1748116254816,-420.0,0.00019424,2]
[362240810,1748116254825,-2374.36,0.00019424,2]
[362240811,1748116254835,-516.16,0.00019424,2]
[362240812,1748116254844,-529.42,0.00019424,2]
[362240813,1748116254854,-420.0,0.00019424,2]
[362240814,1748116254864,-420.0,0.00019424,2]
[362240815,1748116254874,-8126.19,0.00019424,2]
[362240816,1748116254885,-481.48,0.00019424,2]
[362240817,1748116254896,-420.0,0.00019424,2]
[362240818,1748116254906,-4788.51,0.00019424,2]
[362240819,1748116254915,-5164.09,0.00019424,2]
[362240820,1748116254925,-2539.15,0.00019424,2]
[362240821,1748116254936,-2472.14,0.00019424,2]
[362240822,1748116254946,-420.0,0.00019424,2]
[362240823,1748116254957,-420.0,0.00019424,2]
[362240824,1748116254967,-456.31,0.00019424,2]
[362240825,1748116254977,-9389.26,0.00019424,2]
[362240826,1748116254987,-876.17,0.00019424,2]
[362240827,1748116254997,-645.7,0.00019424,2]
[362240828,1748116255010,-420.0,0.00019424,2]
[362240829,1748116255019,-420.0,0.00019424,2]
[362240830,1748116255029,-545.76,0.00019424,2]
[362240831,1748116255040,-299.12136523,0.00019424,2]
[362240832,1748116255052,-504.15,0.00019424,2]
[362240833,1748116255063,-190.580656,0.00019424,2]
[362240834,1748116255073,-534.06,0.00019424,2]
[362240835,1748116255083,-766.65,0.00019424,2]
[362240836,1748116255092,-420.0,0.00019424,2]
[362240837,1748116255102,-420.0,0.00019424,2]
[362240838,1748116255112,-420.0,0.00019424,2]
[362240839,1748116255122,-420.0,0.00019424,2]
[362240840,1748116255131,-269.634795,0.00019424,2]
[362240841,1748116255141,-420.0,0.00019424,2]
[362240842,1748116255151,-1478.62,0.00019424,2]
[362240843,1748116255164,-420.0,0.00019424,2]
[362240844,1748116255174,-420.0,0.00019424,2]
[362240845,1748116255183,-2864.50151044,0.00019434,2]
[362240846,1748116255194,-402.43891268,0.00019434,2]
[362240847,1748116255206,-203.48081343,0.00019434,2]
[362240848,1748116255216,-469.432,0.00019447,2]
[362240849,1748116255229,-420.0,0.00019452,2]
[362240850,1748116255240,-420.0,0.00019452,2]
[362240851,1748116255250,-420.0,0.00019452,2]
[362240852,1748116255260,-151.0,0.00019452,2]
[362240853,1748116255270,-420.0,0.00019452,2]
[362240854,1748116255280,-420.0,0.00019452,2]
[362240855,1748116255289,-1297.43,0.00019452,2]
[362240856,1748116255299,-420.0,0.00019452,2]
[362240857,1748116255309,-1802.19,0.00019452,2]
[362240858,1748116255318,-927.35,0.00019452,2]
[362240859,1748116255328,-1188.36,0.00019452,2]
[362240860,1748116255338,-1105.39,0.00019452,2]
[362240861,1748116255348,-420.0,0.00019452,2]
[362240862,1748116255359,-1608.87,0.00019452,2]
[362240863,1748116255368,-486.35,0.00019452,2]
[362240864,1748116255377,-420.0,0.00019452,2]
[362240865,1748116255389,-469.4,0.00019452,2]
[362240866,1748116255399,-420.0,0.00019452,2]
[362240867,1748116255408,-420.0,0.00019452,2]
[362240868,1748116255418,-420.0,0.00019452,2]
[362240869,1748116255427,-420.0,0.00019452,2]
[362240870,1748116255439,-420.0,0.00019452,2]
[362240871,1748116255450,-436.042959,0.00019452,2]
[362240872,1748116255459,-436.042959,0.00019452,2]
[362240873,1748116255469,-420.0,0.00019452,2]
[362240874,1748116255480,-153.59847359,0.00019452,2]
[362240875,1748116255489,-420.0,0.00019452,2]
[362240876,1748116255499,-151.0,0.00019452,2]
[362240877,1748116255508,-420.0,0.00019452,2]
[362240878,1748116255518,-424.03974855,0.00019452,2]
[362240879,1748116255527,-4383.53,0.00019452,2]
[362240880,1748116255537,-3769.69,0.00019452,2]
[362240881,1748116255547,-420.0,0.00019452,2]
[362240882,1748116255558,-656.85,0.00019452,2]
[362240883,1748116255568,-5179.25,0.00019452,2]
[362240884,1748116255577,-12680.55,0.00019452,2]
[362240885,1748116255587,-2547.29,0.00019452,2]
[362240886,1748116255597,-1162.86,0.00019452,2]
[362240887,1748116255606,-420.0,0.00019452,2]
[362240888,1748116255616,-1344.45,0.00019452,2]
[362240889,1748116255625,-656.04,0.00019452,2]
[362240890,1748116255635,-1282.98,0.00019452,2]
[362240891,1748116255646,-2271.15,0.00019452,2]
[362240892,1748116255656,-420.0,0.00019452,2]
[362240893,1748116255666,-696.43,0.00019452,2]
[362240894,1748116255676,-552.75823452,0.00019452,2]
[362240895,1748116255689,-2286.12,0.00019452,2]
[362240896,1748116255700,-420.0,0.00019452,2]
[362240897,1748116255710,-174491.89,0.00019452,2]
[362240898,1748116255720,-518.3,0.00019452,2]
[362240899,1748116255730,-7135.55,0.00019452,2]
[362240900,1748116255740,-596.93,0.00019452,2]
[362240901,1748116255750,-420.0,0.00019452,2]
[362240902,1748116255760,-2374.36,0.00019452,2]
[362240903,1748116255771,-516.16,0.00019452,2]
[362240904,1748116255783,-529.42,0.00019452,2]
[362240905,1748116255794,-420.0,0.00019452,2]
[362240906,1748116255804,-420.0,0.00019452,2]
[362240907,1748116255815,-8126.19,0.00019452,2]
[362240908,1748116255825,-481.48,0.00019452,2]
[362240909,1748116255835,-151.0,0.00019452,2]
[362240910,1748116255847,-420.0,0.00019452,2]
[362240911,1748116255858,-4788.51,0.00019452,2]
[362240912,1748116255868,-5164.09,0.00019452,2]
[362240913,1748116255878,-151.0,0.00019452,2]
[362240914,1748116255888,-2539.15,0.00019452,2]
[362240915,1748116255898,-2472.14,0.00019452,2]
[362240916,1748116255908,-420.0,0.00019452,2]
[362240917,1748116255917,-327.31,0.00019452,2]
[362240918,1748116255927,-456.31,0.00019452,2]
[362240919,1748116255936,-9389.26,0.00019452,2]
[362240920,1748116255946,-876.17,0.00019452,2]
[362240921,1748116255956,-645.7,0.00019452,2]
[362240922,1748116255966,-420.0,0.00019452,2]
[362240923,1748116255975,-420.0,0.00019452,2]
[362240924,1748116255984,-545.76,0.00019452,2]
[362240925,1748116255994,-504.15,0.00019452,2]
[362240926,1748116256004,-190.580656,0.00019452,2]
[362240927,1748116256014,-534.06,0.00019452,2]
[362240928,1748116256024,-766.65,0.00019452,2]
[362240929,1748116256034,-420.0,0.00019452,2]
[362240930,1748116256043,-420.0,0.00019452,2]
[362240931,1748116256053,-420.0,0.00019452,2]
[362240932,1748116256063,-420.0,0.00019452,2]
[362240933,1748116256073,-151.0,0.00019452,2]
[362240934,1748116256082,-420.0,0.00019452,2]
[362240935,1748116256092,-1478.62,0.00019452,2]
[362240936,1748116256101,-220.751176,0.00019452,2]
[362240937,1748116256111,-152.925138,0.00019452,2]
[362240938,1748116256121,-420.0,0.00019452,2]
[362240939,1748116256133,-420.0,0.00019452,2]
[362240940,1748116256143,-151.0,0.00019452,2]
[362240941,1748116256155,-151.0,0.00019452,2]
[362240942,1748116256166,-152.988062,0.00019452,2]
[362240943,1748116256178,-151.0,0.00019452,2]
[362240944,1748116256189,-151.0,0.00019452,2]
[362240945,1748116256199,-3428.15493359,0.00019461,2]
[362240946,1748116256210,-53606.4796406,0.00019479,2]
[362240947,1748116256220,-420.0,0.00019479,2]
[362240948,1748116256231,-247.30413117,0.00019479,2]
[362240949,1748116256243,-163.97112318,0.00019479,2]
[362240950,1748116256252,-420.0,0.00019479,2]
[362240951,1748116256262,-420.0,0.00019479,2]
[362240952,1748116256272,-1297.43,0.00019479,2]
[362240953,1748116256282,-420.0,0.00019479,2]
[362240954,1748116256293,-1802.19,0.00019479,2]
[362240955,1748116256303,-927.35,0.00019479,2]
[362240956,1748116256312,-1188.36,0.00019479,2]
[362240957,1748116256322,-1105.39,0.00019479,2]
[362240958,1748116256332,-420.0,0.00019479,2]
[362240959,1748116256342,-151.0,0.00019479,2]
[362240960,1748116256353,-1608.87,0.00019479,2]
[362240961,1748116256363,-486.35,0.00019479,2]
[362240962,1748116256374,-274.58810457,0.00019479,2]
[362240963,1748116256385,-469.4,0.00019479,2]
[362240964,1748116256395,-420.0,0.00019479,2]
[362240965,1748116256406,-420.0,0.00019479,2]
[362240966,1748116256416,-420.0,0.00019479,2]
[362240967,1748116256427,-420.0,0.00019479,2]
[362240968,1748116256437,-151.0,0.00019479,2]
[362240969,1748116256447,-420.0,0.00019479,2]
[362240970,1748116256458,-420.0,0.00019479,2]
[362240971,1748116256468,-420.0,0.00019479,2]
[362240972,1748116256478,-151.0,0.00019479,2]
[362240973,1748116256488,-420.0,0.00019479,2]
[362240974,1748116256501,-4383.53,0.00019479,2]
[362240975,1748116256513,-3769.69,0.00019479,2]
[362240976,1748116256523,-420.0,0.00019479,2]
[362240977,1748116256533,-656.85,0.00019479,2]
[362240978,1748116256545,-5179.25,0.00019479,2]
[362240979,1748116256555,-151.0,0.00019479,2]
[362240980,1748116256565,-12680.55,0.00019479,2]
[362240981,1748116256576,-2547.29,0.00019479,2]
[362240982,1748116256587,-1162.86,0.00019479,2]
[362240983,1748116256597,-420.0,0.00019479,2]
[362240984,1748116256608,-1344.45,0.00019479,2]
[362240985,1748116256618,-656.04,0.00019479,2]
[362240986,1748116256629,-151.0,0.00019479,2]
[362240987,1748116256640,-1282.98,0.00019479,2]
[362240988,1748116256650,-2271.15,0.00019479,2]
[362240989,1748116256659,-420.0,0.00019479,2]
[362240990,1748116256669,-696.43,0.00019479,2]
[362240991,1748116256679,-2286.12,0.00019479,2]
[362240992,1748116256689,-420.0,0.00019479,2]
[362240993,1748116256698,-174491.89,0.00019479,2]
[362240994,1748116256708,-518.3,0.00019479,2]
[362240995,1748116256719,-7135.55,0.00019479,2]
[362240996,1748116256729,-596.93,0.00019479,2]
[362240997,1748116256739,-420.0,0.00019479,2]
[362240998,1748116256748,-2374.36,0.00019479,2]
[362240999,1748116256760,-516.16,0.00019479,2]
[362241000,1748116256770,-529.42,0.00019479,2]
[362241001,1748116256780,-420.0,0.00019479,2]
[362241002,1748116256790,-420.0,0.00019479,2]
[362241003,1748116256800,-8126.19,0.00019479,2]
[362241004,1748116256989,-481.48,0.00019479,2]
[362241005,1748116257034,-420.0,0.00019479,2]
[362241006,1748116257044,-4788.51,0.00019479,2]
[362241007,1748116257054,-5164.09,0.00019479,2]
[362241008,1748116257064,-2539.15,0.00019479,2]
[362241009,1748116257074,-2472.14,0.00019479,2]
[362241010,1748116257084,-420.0,0.00019479,2]
[362241011,1748116257094,-456.31,0.00019479,2]
[362241012,1748116257105,-9389.26,0.00019479,2]
[362241013,1748116257114,-876.17,0.00019479,2]
[362241014,1748116257124,-645.7,0.00019479,2]
[362241015,1748116257133,-420.0,0.00019479,2]
[362241016,1748116257143,-420.0,0.00019479,2]
[362241017,1748116257152,-545.76,0.00019479,2]
[362241018,1748116257163,-504.15,0.00019479,2]
[362241019,1748116257178,-190.580656,0.00019479,2]
[362241020,1748116257188,-534.06,0.00019479,2]
[362241021,1748116257199,-766.65,0.00019479,2]
[362241022,1748116257210,-192.64670434,0.00019479,2]
[362241023,1748116257222,-420.0,0.00019479,2]
[362241024,1748116257232,-420.0,0.00019479,2]
[362241025,1748116257242,-322.1940437,0.00019479,2]
[362241026,1748116257253,-1478.62,0.00019479,2]
[362241027,1748116257263,-420.0,0.00019479,2]
[362241028,1748116257273,-420.0,0.00019479,2]
[362241029,1748116257283,-484.45387155,0.00019479,2]
[362241030,1748116257292,-458.56,0.000195,2]
[362241031,1748116257302,-806.0,0.000195,2]
[362241032,1748116257312,-170.03100195,0.00019503,2]
[362241033,1748116257322,-151.0,0.00019506,2]
[362241034,1748116257332,-420.0,0.00019506,2]
[362241035,1748116257341,-420.0,0.00019506,2]
[362241036,1748116257351,-420.0,0.00019506,2]
[362241037,1748116257362,-1297.43,0.00019506,2]
[362241038,1748116257372,-420.0,0.00019506,2]
[362241039,1748116257381,-1802.19,0.00019506,2]
[362241040,1748116257391,-927.35,0.00019506,2]
[362241041,1748116257401,-1188.36,0.00019506,2]
[362241042,1748116257410,-1105.39,0.00019506,2]
[362241043,1748116257420,-420.0,0.00019506,2]
[362241044,1748116257431,-1608.87,0.00019506,2]
[362241045,1748116257441,-486.35,0.00019506,2]
[362241046,1748116257452,-469.4,0.00019506,2]
[362241047,1748116257461,-534.18582381,0.00019506,2]
[362241048,1748116257471,-385.8596092,0.00019506,2]
[362241049,1748116257480,-366.71010451,0.00019506,2]
[362241050,1748116257490,-420.0,0.00019506,2]
[362241051,1748116257499,-420.0,0.00019506,2]
[362241052,1748116257510,-436.042959,0.00019506,2]
[362241053,1748116257519,-436.042959,0.00019506,2]
[362241054,1748116257528,-420.0,0.00019506,2]
[362241055,1748116257538,-420.0,0.00019506,2]
[362241056,1748116257548,-151.0,0.00019506,2]
[362241057,1748116257557,-420.0,0.00019506,2]
[362241058,1748116257567,-4383.53,0.00019506,2]
[362241059,1748116257578,-3769.69,0.00019506,2]
[362241060,1748116257589,-420.0,0.00019506,2]
[362241061,1748116257599,-656.85,0.00019506,2]
[362241062,1748116257610,-5179.25,0.00019506,2]
[362241063,1748116257620,-12680.55,0.00019506,2]
[362241064,1748116257631,-2547.29,0.00019506,2]
[362241065,1748116257640,-1162.86,0.00019506,2]
[362241066,1748116257650,-318.91149756,0.00019506,2]
[362241067,1748116257659,-1344.45,0.00019506,2]
[362241068,1748116257668,-656.04,0.00019506,2]
[362241069,1748116257677,-1282.98,0.00019506,2]
[362241070,1748116257687,-2271.15,0.00019506,2]
[362241071,1748116257697,-198.06552988,0.00019506,2]
[362241072,1748116257706,-696.43,0.00019506,2]
[362241073,1748116257716,-2286.12,0.00019506,2]
[362241074,1748116257725,-420.0,0.00019506,2]
[362241075,1748116257736,-174491.89,0.00019506,2]
[362241076,1748116257746,-518.3,0.00019506,2]
[362241077,1748116257756,-7135.55,0.00019506,2]
[362241078,1748116257766,-596.93,0.00019506,2]
[362241079,1748116257776,-420.0,0.00019506,2]
[362241080,1748116257785,-2374.36,0.00019506,2]
[362241081,1748116257796,-516.16,0.00019506,2]
[362241082,1748116257807,-529.42,0.00019506,2]
[362241083,1748116257817,-420.0,0.00019506,2]
[362241084,1748116257826,-420.0,0.00019506,2]